fUSD/lending_fUSD_20250522
["ID","MTS","AMOUNT","RATE_DAILY","PERIOD"]
[361938736,1747900270423,-420.0,0.0003315,5]
[361938737,1747900270433,-1064.03,0.0003315,5]
[361938738,1747900270443,-703.51079951,0.0003315,5]
[361938739,1747900271296,-1042.97920049,0.0003315,5]
[361938740,1747900271307,-1401.29,0.0003315,5]
[361938741,1747900271317,-145.03142664,0.0003315,5]
[361938742,1747900271329,-274.96857336,0.0003315,5]
[361938743,1747900271339,-399.83852665,0.0003315,5]
[361938745,1747900842177,150.0,1e-08,2]
[361938746,1747900852369,151.0,0.0001,2]
[361938747,1747900853500,245.37320163,0.0001,2]
[361938748,1747900958937,150.0,0.00012,5]
[361938755,1747901311447,338.69,0.00026218,120]
[361938756,1747901326518,-181.16,0.00013699,2]
[361938757,1747901326541,-56.3397436,0.00015,2]
[361938758,1747901328712,-167.53,0.00015,2]
[361938759,1747901330831,-26.1302564,0.00015,2]
[361938760,1747901330858,-191.35963098,0.00015612,2]
[361938770,1747901431811,-109.79036902,0.00015612,2]
[361938771,1747901431821,-305.2,0.00015612,2]
[361938772,1747901431831,-130.45605879,0.00015615,2]
[361938773,1747901431843,-169.63394121,0.00015615,2]
[361938774,1747901431852,-300.95,0.00015615,2]
[361938775,1747901431863,-55.39068824,0.00015624,2]
[361938776,1747901431909,-250.13931176,0.00015624,2]
[361938777,1747901431920,-305.34,0.00015624,2]
[361938778,1747901431929,-301.17,0.00015698,2]
[361938779,1747901431939,-303.04,0.00015698,2]
[361938780,1747901431949,-1200.0,0.00016222,2]
[361938781,1747901431958,-305.69,0.00016222,2]
[361938782,1747901431968,-302.48,0.00016222,2]
[361938783,1747901431981,-300.0,0.00016223,2]
[361938784,1747901431992,-304.19,0.00016223,2]
[361938785,1747901432001,-304.24,0.00016223,2]
[361938786,1747901432011,-301.63,0.00016224,2]
[361938787,1747901432021,-303.97,0.00016224,2]
[361938788,1747901432033,-301.49,0.00016224,2]
[361938789,1747901432043,-302.12,0.00016224,2]
[361938790,1747901432054,-300.54,0.00016224,2]
[361938791,1747901432064,-301.07,0.00016224,2]
[361938792,1747901432073,-302.26,0.00016224,2]
[361938793,1747901432083,-301.27,0.00016224,2]
[361938794,1747901432092,-302.3,0.00016224,2]
[361938795,1747901432101,-301.67,0.00016224,2]
[361938796,1747901432111,-300.79,0.00016228,2]
[361938797,1747901432120,-302.75,0.00016249,2]
[361938798,1747901432130,-305.16,0.00016249,2]
[361938799,1747901432139,-303.94,0.00016364,2]
[361938800,1747901432148,-304.59,0.00016364,2]
[361938801,1747901432158,-300.0,0.00017,2]
[361938802,1747901432168,-420.0,0.00017733,2]
[361938803,1747901432178,-394.0,0.00017821,2]
[361938805,1747901432187,-151.0,0.00017985,2]
[361938807,1747901432196,-151.0,0.00018027,2]
[361938809,1747901432206,-151.0,0.0001805,2]
[361938811,1747901432216,-350.0,0.00019,2]
[361938812,1747901432225,-159.51,0.00019178,2]
[361938813,1747901432235,-557.58,0.00019531,2]
[361938814,1747901432245,-181.16,0.00020187,2]
[361938815,1747901432254,-2751.0,0.00020313,2]
[361938816,1747901432263,-250.0,0.00020935,2]
[361938817,1747901432273,-338.69,0.00020974,2]
[361938818,1747901432283,-400.0,0.00021,2]
[361938819,1747901432291,-799.0,0.00021136,2]
[361938820,1747901432301,-168.56,0.00021478,2]
[361938821,1747901432310,-650.241,0.00021497,2]
[361938822,1747901432320,-4049.0,0.00021497,2]
[361938823,1747901432329,-154.0,0.00021497,2]
[361938824,1747901432339,-150.0,0.00021655,7]
[361938825,1747901432348,-557.58,0.00021795,2]
[361938826,1747901432357,-150.82,0.00021918,2]
[361938827,1747901432367,-169.79,0.00021945,30]
[361938828,1747901432376,-450.0,0.00023,2]
[361938829,1747901432385,-239.71,0.00023026,2]
[361938830,1747901432394,-1000.0,0.00023378,2]
[361938831,1747901432403,-338.69,0.00023596,2]
[361938833,1747901432413,-239.71,0.00023889,2]
[361938835,1747901432422,-506.51242207,0.00024,2]
[361938837,1747901432432,-557.58,0.00024059,2]
[361938839,1747901432442,-799.0,0.00024136,2]
[361938841,1747901432451,-17778.94,0.00024174,2]
[361938842,1747901432461,-8423.08396217,0.00024174,2]
[361938845,1747901432473,-350.0,0.00024174,2]
[361938848,1747901432496,-1552.831098,0.00024174,2]
[361938850,1747901432508,-887.09610026,0.00024174,2]
[361938852,1747901432519,-3709.52823756,0.00024174,2]
[361938859,1747901432571,-3696.8744604,0.00024174,2]
[361938921,1747901437836,-491.79668781,0.000179,2]
[361938922,1747901437846,-151.0,0.00018071,2]
[361938923,1747901437856,-491.79668759,0.00018728,2]
[361938924,1747901437866,-105.4766246,0.00019555,2]
[361938925,1747901437878,-386.32006299,0.00019555,2]
[361938926,1747901437888,-448.94363101,0.00020383,3]
[361938927,1747901438052,-42.85305658,0.00020383,3]
[361938929,1747901438063,-491.79668759,0.0002121,4]
[361938931,1747901438073,-491.79668759,0.00022038,6]
[361938933,1747901438083,-491.79668759,0.00022866,8]
[361938935,1747901438092,-491.79668759,0.00023693,9]
[361938937,1747901438102,-11380.57614161,0.00024174,2]
[361938939,1747901438112,-4049.0,0.00024497,2]
[361938941,1747901438121,-154.0,0.00024497,2]
[361938943,1747901438131,-491.79668759,0.00024521,11]
[361938945,1747901438140,-1000.0,0.00024658,2]
[361938947,1747901438150,-150.82,0.00024658,2]
[361938949,1747901438159,-676.6,0.00024736,2]
[361938951,1747901438169,-239.71,0.00024753,2]
[361938954,1747901438180,-1751.26664699,0.0002477,2]
[361938955,1747901438189,-1000.0,0.0002487,2]
[361938957,1747901438199,-500.0,0.00025,2]
[361938960,1747901438208,-491.79668759,0.00025348,13]
[361938962,1747901438218,-515.21,0.000256,14]
[361938964,1747901438227,-515.2187,0.000256,14]
[361938966,1747901438237,-239.71,0.00025616,2]
[361938967,1747901438246,-300.34,0.00025739,2]
[361938969,1747901438256,-303.61,0.00025739,2]
[361938971,1747901438266,-491.79668759,0.00026176,14]
[361938973,1747901438275,-18138.50864169,0.000262,2]
[361938976,1747901438287,-3439.0,0.000262,2]
[361938977,1747901438298,-3229.23732841,0.000262,2]
[361939161,1747901440040,-250.0,0.00020629,2]
[361939162,1747901440050,-346.76669111,0.000262,2]
[361939163,1747901440062,-1633.00973577,0.000262,2]
[361939174,1747901440250,-1387.3835832,0.000262,2]
[361939419,1747901442941,-515.21,0.000263,14]
[361939420,1747901442951,-143.16860201,0.00026301,2]
[361939421,1747901442963,-856.83139799,0.00026301,2]
[361939422,1747901442972,-557.58,0.00026322,2]
[361939423,1747901442984,-239.71,0.0002648,2]
[361939424,1747901442994,-157.54500282,0.000265,2]
[361939425,1747901443003,-301.46,0.000266,2]
[361939426,1747901443013,-128.26421455,0.000266,2]
[361939428,1747901443025,-176.95578545,0.000266,2]
[361939429,1747901443035,-305.92,0.000266,2]
[361939430,1747901443044,-304.21,0.000266,2]
[361939432,1747901443054,-304.29,0.000266,2]
[361939433,1747901443065,-181.16,0.00026676,2]
[361939434,1747901443075,-5561.0,0.00027,3]
[361939435,1747901443084,-491.79668759,0.00027003,16]
[361939436,1747901443093,-618.39672324,0.00027036,12]
[361939437,1747901443103,-799.0,0.00027136,2]
[361939438,1747901443113,-500.0,0.00027367,2]
[361939439,1747901443124,-490.58379542,0.00027367,2]
[361939440,1747901443133,-500.0,0.00027367,2]
[361939441,1747901443142,-500.0,0.00027367,2]
[361939442,1747901443151,-500.0,0.00027367,2]
[361939443,1747901443161,-386.97451784,0.00027367,2]
[361939444,1747901443170,-998.16355582,0.0002737,2]
[361939445,1747901443180,-1000.0,0.0002737,2]
[361939446,1747901443190,-150.82,0.00027397,2]
[361939447,1747901443199,-1272.448,0.00027497,2]
[361939448,1747901443208,-154.0,0.00027497,2]
[361939449,1747901443217,-2809.139,0.00027551,17]
[361939450,1747901443227,-213.366,0.00027551,17]
[361939451,1747901443236,-5561.0,0.000277,5]
[361939452,1747901443245,-157.54500279,0.00027729,2]
[361939453,1747901443254,-491.79668759,0.00027831,17]
[361939454,1747901443264,-200.0,0.0002816,117]
[361939456,1747901443273,-250.0,0.0002816,2]
[361939457,1747901443283,-557.58,0.00028586,2]
[361939458,1747901443292,-491.79668759,0.00028659,19]
[361939459,1747901443301,-338.69,0.0002884,120]
[361939460,1747901443310,-157.54500279,0.00028957,2]
[361939461,1747901443319,-158.56,0.00029,2]
[361939463,1747901443329,-1000.0,0.00029223,2]
[361939464,1747901443338,-166.81,0.0002944,2]
[361939465,1747901443347,-491.79668759,0.00029486,21]
[361939466,1747901443356,-517.09,0.00029706,2]
[361939467,1747901443365,-799.0,0.00030136,2]
[361939468,1747901443375,-150.82,0.00030137,2]
[361939469,1747901443384,-157.54500279,0.00030186,2]
[361939470,1747901443393,-491.79668759,0.00030314,22]
[361939471,1747901443402,-154.0,0.00030497,2]
[361939472,1747901443412,-557.58,0.0003085,2]
[361939473,1747901443421,-237.0,0.000309,2]
[361939474,1747901443431,-201.825371,0.000311,4]
[361939475,1747901443440,-491.79668759,0.00031141,24]
[361939476,1747901443449,-157.54500279,0.00031415,2]
[361939477,1747901443458,-338.69,0.00031462,120]
[361939478,1747901443468,-180.23892222,0.0003164,7]
[361939479,1747901443478,-1775.47538265,0.00031671,30]
[361939480,1747901443487,-1775.47538265,0.00031808,30]
[361939481,1747901443496,-1775.47538265,0.00031945,30]
[361939482,1747901443505,-491.79668759,0.00031969,26]
[361939483,1747901443514,-168.54741501,0.00032045,2]
[361939484,1747901443523,-1775.47538265,0.00032055,30]
[361939485,1747901443533,-2223.71945545,0.000321,2]
[361939486,1747901443633,-7800.0,0.000321,2]
[361939487,1747901443644,-988.13522949,0.000321,2]
[361939488,1747901443655,-273.44225128,0.000321,2]
[361939489,1747901443875,150.0,1e-08,2]
[361939496,1747901445758,-12614.70306378,0.000321,2]
[361939497,1747901445768,-833.119059,0.00032129,4]
[361939498,1747901445778,-868.51066155,0.00032145,2]
[361939499,1747901445790,-131.48933845,0.00032145,2]
[361939500,1747901445801,-1775.47538265,0.00032192,30]
[361939501,1747901445811,-1775.47538265,0.00032329,30]
[361939502,1747901445821,-203.0,0.00032411,2]
[361939503,1747901445831,-1775.47538265,0.00032438,30]
[361939504,1747901445840,-1775.47538265,0.00032575,30]
[361939505,1747901445849,-157.54500279,0.00032643,2]
[361939506,1747901445859,-736.2288,0.00032676,2]
[361939507,1747901446108,-271.31746011,0.00032676,2]
[361939508,1747901446136,-159.0691359,0.00032676,15]
[361939509,1747901446147,-9093.33155556,0.0003268,2]
[361939510,1747901446158,-9093.33155556,0.0003269,2]
[361939511,1747901446167,-1775.47538265,0.00032712,30]
[361939512,1747901446178,-9093.33155556,0.00032756,2]
[361939513,1747901446188,-17676.25543942,0.00032766,2]
[361939514,1747901446209,-6323.1,0.00032766,2]
[361939515,1747901446222,-341.77000004,0.00032766,2]
[361939518,1747901446269,-30218.86389394,0.00032766,2]
[361939520,1747901446279,-9093.33155556,0.00032769,2]
[361939522,1747901446288,-1000.0,0.00032776,2]
[361939524,1747901446298,-9081.1264,0.00032776,2]
[361939526,1747901446308,-5000.0,0.00032776,2]
[361939528,1747901446318,-102241.08134417,0.00032776,14]
[361939530,1747901446328,-323.01250876,0.00032776,2]
[361939532,1747901446338,-9093.33155556,0.00032788,2]
[361939534,1747901446347,-72746.6524445,0.00032789,2]
[361939536,1747901446357,-491.79668759,0.00032797,27]
[361939538,1747901446368,-21311.38506224,0.00032798,5]
[361939540,1747901446380,-148695.0339,0.00032799,2]
[361939542,1747901446394,-271.31746008,0.00032809,2]
[361939544,1747901446407,-1775.47538265,0.00032822,30]
[361939545,1747901446417,-9093.33155556,0.00032846,2]
[361939546,1747901446428,-200.0,0.00032858,2]
[361939547,1747901446439,-54559.9893334,0.00032864,2]
[361939548,1747901446449,-18186.6631111,0.00032866,2]
[361939549,1747901446459,-500.0,0.0003287,2]
[361939550,1747901446470,-1000.0,0.0003287,2]
[361939551,1747901446480,-265.86162161,0.00032873,5]
[361939552,1747901446489,-520.6827902,0.00032873,5]
[361939553,1747901446500,-150.0,0.00032873,2]
[361939554,1747901446512,-116117.37177439,0.00032874,2]
[361939555,1747901446523,-500.0,0.00032875,30]
[361939556,1747901446534,-420.0,0.00032876,5]
[361939557,1747901446544,-420.0,0.00032876,5]
[361939558,1747901446555,-509.74060325,0.00032876,5]
[361939559,1747901446565,-502.08,0.00032876,5]
[361939560,1747901446576,-420.0,0.00032876,5]
[361939561,1747901446586,-481.75,0.00032876,5]
[361939562,1747901446596,-420.0,0.00032876,5]
[361939563,1747901446606,-420.0,0.00032876,5]
[361939564,1747901446615,-420.0,0.00032876,5]
[361939565,1747901446625,-420.0,0.00032876,5]
[361939566,1747901446634,-420.0,0.00032876,5]
[361939567,1747901446644,-420.0,0.00032876,5]
[361939568,1747901446654,-420.0,0.00032876,5]
[361939569,1747901446664,-420.0,0.00032876,5]
[361939570,1747901446673,-420.0,0.00032876,5]
[361939571,1747901446684,-645.971224,0.00032876,5]
[361939572,1747901446694,-1224.69,0.00032876,5]
[361939573,1747901446704,-420.0,0.00032876,5]
[361939574,1747901446714,-1506.55,0.00032876,5]
[361939575,1747901446725,-420.0,0.00032876,5]
[361939576,1747901446735,-156.703041,0.00032876,5]
[361939577,1747901446745,-750.97,0.00032876,5]
[361939578,1747901446755,-752.26,0.00032876,5]
[361939579,1747901446765,-420.0,0.00032876,5]
[361939580,1747901446775,-420.0,0.00032876,5]
[361939581,1747901446784,-420.0,0.00032876,5]
[361939582,1747901446794,-420.0,0.00032876,5]
[361939583,1747901446804,-543.6,0.00032876,5]
[361939584,1747901446814,-593.92,0.00032876,5]
[361939585,1747901446824,-586.56,0.00032876,5]
[361939586,1747901446835,-1137.32,0.00032876,5]
[361939587,1747901446845,-481.28,0.00032876,5]
[361939588,1747901446855,-420.0,0.00032876,5]
[361939589,1747901446865,-420.0,0.00032876,5]
[361939590,1747901446876,-420.0,0.00032876,5]
[361939591,1747901446886,-422.52862069,0.00032876,5]
[361939592,1747901446896,-420.0,0.00032876,5]
[361939593,1747901446906,-616.38,0.00032876,5]
[361939594,1747901446916,-426.86,0.00032876,5]
[361939595,1747901446926,-420.0,0.00032876,5]
[361939596,1747901446937,-524.06,0.00032876,5]
[361939597,1747901446947,-420.0,0.00032876,5]
[361939598,1747901446956,-706.57,0.00032876,5]
[361939599,1747901446967,-420.0,0.00032876,5]
[361939600,1747901446977,-420.0,0.00032876,5]
[361939601,1747901446991,-420.0,0.00032876,5]
[361939602,1747901447001,-1530.3,0.00032876,5]
[361939603,1747901447011,-610.57,0.00032876,5]
[361939604,1747901447021,-522.91,0.00032876,5]
[361939605,1747901447031,-420.0,0.00032876,5]
[361939606,1747901447041,-429.9,0.00032876,5]
[361939607,1747901447055,-420.0,0.00032876,5]
[361939608,1747901447066,-420.0,0.00032876,5]
[361939609,1747901447075,-994.94,0.00032876,5]
[361939610,1747901447085,-1274.94,0.00032876,5]
[361939611,1747901447094,-884.22,0.00032876,5]
[361939612,1747901447104,-420.0,0.00032876,5]
[361939613,1747901447114,-420.0,0.00032876,5]
[361939614,1747901447124,-420.0,0.00032876,5]
[361939615,1747901447134,-420.0,0.00032876,5]
[361939616,1747901447144,-420.0,0.00032876,5]
[361939617,1747901447154,-571.06,0.00032876,5]
[361939618,1747901447164,-420.0,0.00032876,5]
[361939619,1747901447174,-420.0,0.00032876,5]
[361939620,1747901447183,-582.81,0.00032876,5]
[361939621,1747901447193,-1270.6,0.00032876,5]
[361939622,1747901447202,-1093.25,0.00032876,5]
[361939623,1747901447212,-420.0,0.00032876,5]
[361939624,1747901447222,-420.0,0.00032876,5]
[361939625,1747901447232,-464.82,0.00032876,5]
[361939626,1747901447242,-535.21,0.00032876,5]
[361939627,1747901447253,-420.0,0.00032876,5]
[361939628,1747901447263,-420.0,0.00032876,5]
[361939629,1747901447273,-420.0,0.00032876,5]
[361939630,1747901447282,-420.0,0.00032876,5]
[361939631,1747901447292,-420.0,0.00032876,5]
[361939632,1747901447302,-420.0,0.00032876,5]
[361939633,1747901447311,-500.81429761,0.00032876,5]
[361939634,1747901447321,-501.12,0.00032876,5]
[361939635,1747901447331,-420.0,0.00032876,5]
[361939636,1747901447340,-562.47,0.00032876,5]
[361939637,1747901447350,-1224.43,0.00032876,5]
[361939638,1747901447360,-335.79016838,0.00032876,5]
[361939639,1747901447370,-592.46,0.00032876,5]
[361939640,1747901447379,-1211.69,0.00032876,5]
[361939641,1747901447388,-420.0,0.00032876,5]
[361939642,1747901447398,-444.95944427,0.00032876,5]
[361939643,1747901447407,-420.0,0.00032876,5]
[361939644,1747901447417,-927.59,0.00032876,5]
[361939645,1747901447427,-420.0,0.00032876,5]
[361939646,1747901447437,-1045.6,0.00032876,5]
[361939647,1747901447446,-445.09,0.00032876,5]
[361939648,1747901447456,-420.0,0.00032876,5]
[361939649,1747901447466,-967.09,0.00032876,5]
[361939650,1747901447475,-420.0,0.00032876,5]
[361939651,1747901447485,-420.0,0.00032876,5]
[361939652,1747901447494,-420.0,0.00032876,5]
[361939653,1747901447504,-510.4,0.00032876,5]
[361939654,1747901447513,-471.28,0.00032876,5]
[361939655,1747901447523,-420.0,0.00032876,5]
[361939656,1747901447533,-1301.46,0.00032876,5]
[361939657,1747901447542,-420.0,0.00032876,5]
[361939658,1747901447552,-420.0,0.00032876,5]
[361939659,1747901447562,-420.0,0.00032876,5]
[361939660,1747901447571,-420.0,0.00032876,5]
[361939661,1747901447580,-454.07,0.00032876,5]
[361939662,1747901447590,-550.23,0.00032876,5]
[361939663,1747901447600,-420.0,0.00032876,5]
[361939664,1747901447610,-1029.32,0.00032876,5]
[361939665,1747901447619,-628.32,0.00032876,5]
[361939666,1747901447628,-420.0,0.00032876,5]
[361939667,1747901447638,-420.0,0.00032876,5]
[361939668,1747901447647,-420.0,0.00032876,5]
[361939669,1747901447657,-452.3,0.00032876,5]
[361939670,1747901447667,-420.0,0.00032876,5]
[361939671,1747901447676,-420.0,0.00032876,5]
[361939672,1747901447687,-171.23880874,0.00032876,5]
[361939673,1747901447696,-420.0,0.00032876,5]
[361939674,1747901447707,-420.0,0.00032876,5]
[361939675,1747901447717,-420.0,0.00032876,5]
[361939676,1747901447727,-420.0,0.00032876,5]
[361939677,1747901447738,-747.58,0.00032876,5]
[361939678,1747901447747,-420.0,0.00032876,5]
[361939679,1747901447757,-967.88,0.00032876,5]
[361939680,1747901447767,-420.0,0.00032876,5]
[361939681,1747901447776,-420.0,0.00032876,5]
[361939682,1747901447785,-944.15,0.00032876,5]
[361939683,1747901447795,-420.0,0.00032876,5]
[361939684,1747901447804,-629.31,0.00032876,5]
[361939685,1747901447815,-420.0,0.00032876,5]
[361939686,1747901447824,-420.0,0.00032876,5]
[361939687,1747901447833,-420.0,0.00032876,5]
[361939688,1747901447843,-420.0,0.00032876,5]
[361939689,1747901447852,-420.0,0.00032876,5]
[361939690,1747901447862,-704.52,0.00032876,5]
[361939691,1747901447871,-440.28,0.00032876,5]
[361939692,1747901447885,-420.0,0.00032876,5]
[361939693,1747901447895,-1297.27,0.00032876,5]
[361939694,1747901447905,-420.0,0.00032876,5]
[361939695,1747901447914,-420.0,0.00032876,5]
[361939696,1747901447923,-420.0,0.00032876,5]
[361939697,1747901447932,-1398.07,0.00032876,5]
[361939698,1747901447941,-420.0,0.00032876,5]
[361939699,1747901447951,-420.18,0.00032876,5]
[361939700,1747901447960,-420.0,0.00032876,5]
[361939701,1747901447970,-524.43466463,0.00032876,5]
[361939702,1747901447980,-420.0,0.00032876,5]
[361939703,1747901447993,-420.0,0.00032876,5]
[361939704,1747901448004,-420.0,0.00032876,5]
[361939705,1747901448013,-420.0,0.00032876,5]
[361939706,1747901448023,-420.0,0.00032876,5]
[361939707,1747901448034,-524.86,0.00032876,5]
[361939708,1747901448043,-868.45,0.00032876,5]
[361939709,1747901448053,-529.94,0.00032876,5]
[361939710,1747901448063,-420.0,0.00032876,5]
[361939711,1747901448073,-439.89,0.00032876,5]
[361939712,1747901448083,-420.0,0.00032876,5]
[361939713,1747901448092,-1374.01,0.00032876,5]
[361939714,1747901448102,-847.94,0.00032876,5]
[361939715,1747901448111,-427.27888939,0.00032876,5]
[361939716,1747901448120,-420.0,0.00032876,5]
[361939717,1747901448130,-501.65,0.00032876,5]
[361939718,1747901448140,-420.0,0.00032876,5]
[361939719,1747901448149,-469.47,0.00032876,5]
[361939720,1747901448159,-420.0,0.00032876,5]
[361939721,1747901448168,-420.0,0.00032876,5]
[361939722,1747901448178,-420.0,0.00032876,5]
[361939723,1747901448188,-735.48,0.00032876,5]
[361939724,1747901448198,-881.44,0.00032876,5]
[361939725,1747901448208,-560.29,0.00032876,5]
[361939726,1747901448217,-1523.25,0.00032876,5]
[361939727,1747901448227,-420.0,0.00032876,5]
[361939728,1747901448237,-420.0,0.00032876,5]
[361939729,1747901448246,-420.0,0.00032876,5]
[361939730,1747901448256,-909.71,0.00032876,5]
[361939731,1747901448265,-420.0,0.00032876,5]
[361939732,1747901448275,-420.0,0.00032876,5]
[361939733,1747901448285,-404.62887179,0.00032876,5]
[361939734,1747901448295,-420.0,0.00032876,5]
[361939735,1747901448305,-420.0,0.00032876,5]
[361939736,1747901448314,-422.75999732,0.00032876,5]
[361939737,1747901448324,-1299.39,0.00032876,5]
[361939738,1747901448333,-427.02242069,0.00032876,5]
[361939739,1747901448343,-1153.01,0.00032876,5]
[361939740,1747901448353,-420.0,0.00032876,5]
[361939741,1747901448362,-420.0,0.00032876,5]
[361939742,1747901448372,-420.0,0.00032876,5]
[361939743,1747901448381,-434.95,0.00032876,5]
[361939744,1747901448391,-420.0,0.00032876,5]
[361939745,1747901448401,-420.0,0.00032876,5]
[361939746,1747901448411,-474.54,0.00032876,5]
[361939747,1747901448421,-420.0,0.00032876,5]
[361939748,1747901448431,-420.0,0.00032876,5]
[361939749,1747901448441,-420.0,0.00032876,5]
[361939750,1747901448451,-420.0,0.00032876,5]
[361939751,1747901448461,-455.24,0.00032876,5]
[361939752,1747901448470,-862.23,0.00032876,5]
[361939753,1747901448480,-420.0,0.00032876,5]
[361939754,1747901448490,-642.84,0.00032876,5]
[361939755,1747901448500,-593.87,0.00032876,5]
[361939756,1747901448510,-420.0,0.00032876,5]
[361939757,1747901448520,-1126.18,0.00032876,5]
[361939758,1747901448530,-420.0,0.00032876,5]
[361939759,1747901448540,-555.14,0.00032876,5]
[361939760,1747901448550,-544.54,0.00032876,5]
[361939761,1747901448560,-420.0,0.00032876,5]
[361939762,1747901448570,-420.0,0.00032876,5]
[361939763,1747901448580,-774.1,0.00032876,5]
[361939764,1747901448589,-420.0,0.00032876,5]
[361939765,1747901448598,-420.0,0.00032876,5]
[361939766,1747901448697,-420.0,0.00032876,5]
[361939767,1747901448708,-2004.93,0.00032876,5]
[361939768,1747901448717,-769.67,0.00032876,5]
[361939769,1747901448727,-556.79,0.00032876,5]
[361939770,1747901448737,-420.0,0.00032876,5]
[361939771,1747901448746,-975.37,0.00032876,5]
[361939772,1747901448756,-1442.96,0.00032876,5]
[361939773,1747901448766,-731.0,0.00032876,5]
[361939774,1747901448775,-420.0,0.00032876,5]
[361939775,1747901448784,-420.0,0.00032876,5]
[361939776,1747901448794,-426.15,0.00032876,5]
[361939777,1747901448804,-420.0,0.00032876,5]
[361939778,1747901448813,-420.0,0.00032876,5]
[361939779,1747901448823,-532.6,0.00032876,5]
[361939780,1747901448832,-1075.91,0.00032876,5]
[361939781,1747901448842,-420.0,0.00032876,5]
[361939782,1747901448852,-420.0,0.00032876,5]
[361939783,1747901448861,-420.0,0.00032876,5]
[361939784,1747901448871,-420.0,0.00032876,5]
[361939785,1747901448880,-420.0,0.00032876,5]
[361939786,1747901448890,-477.52,0.00032876,5]
[361939787,1747901448899,-273.28972435,0.00032876,5]
[361939788,1747901448908,-445.00565962,0.00032876,5]
[361939789,1747901448918,-1382.41,0.00032876,5]
[361939790,1747901448928,-420.0,0.00032876,5]
[361939791,1747901448937,-757.81,0.00032876,5]
[361939792,1747901448947,-513.8,0.00032876,5]
[361939793,1747901448956,-571.77,0.00032876,5]
[361939794,1747901448966,-642.63,0.00032876,5]
[361939795,1747901448976,-1903.92,0.00032876,5]
[361939796,1747901448989,-734.95,0.00032876,5]
[361939797,1747901448999,-420.0,0.00032876,5]
[361939798,1747901449008,-1047.32,0.00032876,5]
[361939799,1747901449018,-420.0,0.00032876,5]
[361939800,1747901449029,-420.0,0.00032876,5]
[361939801,1747901449038,-420.0,0.00032876,5]
[361939802,1747901449048,-763.0,0.00032876,5]
[361939803,1747901449058,-703.92,0.00032876,5]
[361939804,1747901449069,-1678.29,0.00032876,5]
[361939805,1747901449079,-420.0,0.00032876,5]
[361939806,1747901449088,-420.0,0.00032876,5]
[361939807,1747901449097,-628.75,0.00032876,5]
[361939808,1747901449107,-516.36,0.00032876,5]
[361939809,1747901449116,-500.59335626,0.00032876,5]
[361939810,1747901449126,-420.0,0.00032876,5]
[361939811,1747901449136,-420.0,0.00032876,5]
[361939812,1747901449145,-420.0,0.00032876,5]
[361939813,1747901449154,-420.0,0.00032876,5]
[361939814,1747901449164,-420.0,0.00032876,5]
[361939815,1747901449173,-420.0,0.00032876,5]
[361939816,1747901449182,-1006.77,0.00032876,5]
[361939817,1747901449193,-1243.32,0.00032876,5]
[361939818,1747901449202,-420.0,0.00032876,5]
[361939819,1747901449212,-2599.81,0.00032876,5]
[361939820,1747901449221,-420.0,0.00032876,5]